bitfinex/quotes_ETHUSD_20241124
["timestamp","ask_amount","ask_price","bid_price","bid_amount"]
[1732459964483,0.8075,3320.0,3319.6,2.40987]
[1732459964680,0.08551204,3319.9,3319.6,2.40987]
[1732459965235,3.09773204,3319.9,3319.3,2.41014]
[1732459965511,0.08551204,3319.9,3319.5,2.40999]
[1732459965913,0.08551204,3319.9,3319.4,2.41003]
[1732459966211,0.08551204,3319.9,3319.5,2.41]
[1732459967702,0.08551204,3319.9,3319.6,2.40991]
[1732459967902,0.08551204,3319.9,3319.8,2.40978]
[1732459968290,0.8075,3320.3,3319.8,2.40978]
[1732459968626,3.81933,3320.3,3319.6,2.40986]
[1732459968806,0.08551204,3320.2,3319.6,2.40986]
[1732459969007,0.08551204,3320.2,3319.7,2.40981]
[1732459969193,3.81933,3320.3,3319.7,2.40981]
[1732459969390,0.08551204,3320.2,3319.7,2.40981]
[1732459969831,3.09739204,3320.2,3319.6,2.40992]
[1732459970400,3.01211,3320.0,3319.3,2.41011]
[1732459970623,3.01188,3320.2,3319.4,0.241011]
[1732459970861,0.08551204,3320.1,3319.6,2.4099]
[1732459971736,3.09751204,3320.1,3319.4,2.41006]
[1732459971934,3.01206,3320.0,3319.4,2.41006]
[1732459972148,0.08551204,3320.1,3319.2,2.4102]
[1732459972149,0.8075,3319.9,3319.2,2.4102]
[1732459972499,0.08551204,3319.8,3319.2,2.4102]
[1732459972934,3.09774204,3319.8,3319.3,2.41014]
[1732459973602,3.09776204,3319.8,3319.1,2.41022]
[1732459973802,3.09776204,3319.8,3319.2,2.4102]
[1732459974310,0.08551204,3319.8,3319.2,2.4102]
[1732459974509,3.09777204,3319.8,3319.2,2.4102]
[1732459975233,0.08551204,3319.8,3319.3,2.41009]
[1732459975537,0.08551204,3319.8,3319.4,2.41007]
[1732459975905,0.08551204,3319.8,3319.5,2.40998]
[1732459977195,0.08551204,3319.8,3319.4,2.41007]
[1732459977507,0.08551204,3319.8,3318.9,0.322342]
[1732459977508,0.08551204,3319.8,3318.9,0.35246482]
[1732459977825,0.8075,3319.9,3319.5,2.40995]
[1732459978022,0.08550258,3319.8,3319.6,2.40987]
[1732459978558,0.08550258,3319.8,3319.7,2.40985]
[1732459978834,0.8075,3320.2,3319.7,2.40985]
[1732459979042,0.08550258,3320.1,3319.7,2.40985]
[1732459980139,0.08550258,3320.1,3318.9,0.322342]
[1732459980140,0.08550258,3320.1,3319.8,2.40976]
[1732459980935,0.08550258,3320.1,3319.7,2.40984]
[1732459981331,0.08550258,3320.1,3319.6,4.81974]
[1732459981524,0.08550258,3320.1,3319.7,2.4098]
[1732459981832,0.08550258,3320.1,3319.8,2.40975]
[1732459982266,0.08550258,3320.1,3319.7,2.40982]
[1732459982445,0.08550258,3320.1,3319.7,2.40981]
[1732459983150,0.08550258,3320.1,3319.8,2.40975]
[1732459983538,0.08550258,3320.1,3319.6,2.732626]
[1732459983863,0.08550258,3320.1,3319.8,2.40977]
[1732459984854,0.08550258,3320.1,3319.8,2.40973]
[1732459985165,3.01219,3319.9,3319.3,2.4101]
[1732459985464,0.7733,3319.5,3318.7,0.7861]
[1732459985624,0.7733,3319.5,3319.4,2.41007]
[1732459985843,0.7733,3319.5,3318.7,0.7861]
[1732459985844,0.08610056,3319.5,3319.0,0.03012496]
[1732459986021,0.7733,3319.8,3319.4,2.41007]
[1732459986264,0.08610056,3319.7,3319.0,0.03012496]
[1732459986559,0.08610056,3319.7,3319.5,2.40995]
[1732459986737,0.7733,3319.8,3319.5,2.40995]
[1732459986940,0.08610056,3319.6,3319.5,2.40995]
[1732459987138,0.7733,3319.8,3319.5,2.40995]
[1732459987342,0.08610056,3319.6,3319.4,2.41006]
[1732459987554,0.7733,3319.8,3319.3,2.41009]
[1732459987555,0.7733,3319.8,3319.5,2.41]
[1732459987738,0.7733,3319.8,3319.3,0.241009]
[1732459987942,0.7733,3319.8,3319.0,0.03012496]
[1732459988156,0.7733,3319.8,3319.4,2.41005]
[1732459988350,0.7733,3319.8,3319.4,2.41006]
[1732459989267,3.78518,3320.2,3319.6,2.40989]
[1732459989768,0.7733,3320.2,3319.6,2.40988]
[1732459989961,0.7733,3320.2,3319.8,2.40976]
[1732459991552,0.7733,3320.6,3319.5,2.41]
[1732459991763,0.7733,3320.6,3319.6,0.66622636]
[1732459991932,0.60697196,3320.9,3320.5,2.40927]
[1732459992442,0.60697196,3320.9,3320.2,4.81898]
[1732459992763,0.18883954,3321.1,3321.0,2.40891]
[1732459993092,0.7733,3321.7,3321.2,2.40876]
[1732459993399,0.7733,3321.7,3321.0,2.40891]
[1732459993675,0.08325856,3321.6,3321.1,2.40883]
[1732459994166,3.09389856,3321.6,3321.0,2.40891]
[1732459994338,3.01071,3321.5,3320.6,2.40917]
[1732459994685,3.01092,3321.3,3320.7,2.40911]
[1732459994978,3.09403856,3321.4,3320.8,2.40904]
[1732459995144,3.01078,3321.4,3320.8,2.40904]
[1732459995338,0.08325856,3321.3,3320.9,2.40897]
[1732459995682,3.01059,3321.6,3320.7,0.03011089]
[1732459995901,3.01059,3321.6,3320.5,1.105641]
[1732459995902,0.08325856,3321.2,3320.5,0.7861]
[1732459996172,0.7733,3321.7,3320.5,0.7861]
[1732459996346,0.7733,3321.7,3321.0,2.40891]
[1732459996347,0.08325856,3321.1,3321.0,2.40891]
[1732459996550,0.7733,3321.7,3321.3,2.40864]
[1732459996747,0.1492222,3321.9,3321.5,2.40853]
[1732459996962,0.1492222,3321.9,3321.3,2.40864]
[1732459996963,0.08325856,3321.6,3321.3,2.40864]
[1732459997161,3.55281942,3321.9,3321.0,2.40885]
[1732459997360,0.08325856,3321.5,3321.0,2.40884]
[1732459997541,0.1492222,3321.9,3320.9,2.40892]
[1732459997746,3.09408856,3321.4,3320.8,2.40904]
[1732459997965,3.01112,3321.1,3320.5,3.19536]
[1732459998165,3.88094856,3321.3,3320.2,0.757]
[1732459998475,0.08325856,3321.2,3320.6,2.40918]
[1732459998654,0.47135342,3321.2,3320.6,2.40918]
[1732459998984,0.47135342,3321.2,3320.5,2.40927]
[1732459999186,3.01107,3321.1,3320.5,2.40927]
[1732459999345,0.47135342,3321.2,3320.3,0.03011288]
[1732459999540,0.38809486,3321.2,3320.7,2.4091]
[1732459999776,0.08325856,3321.1,3320.8,2.40905]
[1732459999941,0.08325856,3321.1,3320.9,2.40894]
[1732460000149,0.7868,3321.3,3320.9,2.40894]
[1732460000373,0.08325856,3321.0,3320.9,2.40894]
[1732460000577,3.79734,3321.7,3321.1,2.40879]
[1732460000886,6.80791,3321.7,3321.1,2.40879]
[1732460001085,3.79733,3321.7,3321.1,2.40879]
[1732460001291,3.79735,3321.7,3320.9,2.40892]
[1732460001500,3.79735,3321.7,3320.8,3.16602]
[1732460001501,3.01075,3321.5,3320.8,3.16602]
[1732460001791,3.01079,3321.4,3320.8,3.166]
[1732460001992,3.01088,3321.3,3320.7,2.40908]
[1732460002381,3.01088,3321.3,3320.5,2.40927]
[1732460002576,3.01109,3321.1,3320.4,3.1663]
[1732460002772,0.3613018,3321.2,3320.5,2.40925]
[1732460003085,3.01082,3321.4,3320.8,2.40901]
[1732460003664,3.01082,3321.4,3320.6,2.4092]
[1732460003665,3.0111,3321.1,3320.6,2.4092]
[1732460003870,3.01059,3321.6,3320.6,2.4092]
[1732460004166,6.02118,3321.6,3320.5,2.40926]
[1732460004367,3.01107,3321.1,3320.5,2.40922]
[1732460004563,3.01092,3321.3,3320.5,2.40926]
[1732460004787,3.01075,3321.5,3320.9,2.40898]
[1732460004992,3.01075,3321.5,3321.0,2.4089]
[1732460005281,3.01079,3321.4,3320.8,4.818]
[1732460005501,3.01075,3321.5,3320.8,4.818]
[1732460005502,3.691556,3321.5,3321.0,2.4089]
[1732460005814,3.01075,3321.5,3321.0,2.4089]
[1732460006115,3.01075,3321.5,3320.7,2.40906]
[1732460006276,3.01097,3321.2,3320.6,2.40917]
[1732460006477,3.01085,3321.4,3320.7,2.40909]
[1732460006676,3.01085,3321.4,3320.9,2.40896]
[1732460006917,3.311935,3321.4,3320.9,2.40896]
[1732460007124,3.311935,3321.4,3320.9,2.40894]
[1732460007303,3.01064,3321.6,3321.1,2.40881]
[1732460007499,0.7868,3321.7,3321.4,2.40857]
[1732460007911,0.1492222,3321.9,3321.4,2.40857]
[1732460008226,3.1595522,3321.9,3321.4,2.40857]
[1732460008524,3.01046,3321.8,3321.2,2.40872]
[1732460008681,6.86944942,3321.9,3321.2,2.4087]
[1732460008876,3.1595522,3321.9,3321.1,0.7816]
[1732460009112,3.1595522,3321.9,3321.2,2.40875]
[1732460009321,3.1595522,3321.9,3321.2,4.81746]
[1732460009482,3.01043,3321.8,3321.2,2.40871]
[1732460009684,3.09435372,3321.8,3321.2,2.40871]
[1732460010222,0.08392372,3321.8,3321.2,2.40876]
[1732460010517,0.08392372,3321.8,3321.4,2.40858]
[1732460010819,0.08392372,3321.8,3321.3,2.40867]
[1732460011681,0.08392372,3321.8,3321.4,2.40858]
[1732460011878,0.08392372,3321.8,3321.3,2.40867]
[1732460012726,0.08392372,3321.8,3321.3,4.81732]
[1732460012886,0.08392372,3321.8,3321.4,2.4086]
[1732460013222,0.08392372,3321.8,3321.5,2.4085]
[1732460013449,0.08392372,3321.8,3321.5,2.40849]
[1732460013732,0.08392372,3321.8,3321.7,2.4084]
[1732460014084,0.08392372,3321.8,3321.5,2.40849]
[1732460014286,0.08392372,3321.8,3321.5,2.649339]
[1732460014532,0.1492222,3321.9,3321.5,2.649339]
[1732460014814,0.1492222,3321.9,3321.1,0.81170235]
[1732460014815,0.08476932,3321.7,3321.3,2.40866]
[1732460015026,3.1595422,3321.9,3320.9,0.03010231]
[1732460015224,0.08476932,3321.6,3321.2,2.40871]
[1732460015521,0.08476932,3321.5,3321.3,2.40868]
[1732460015910,0.1492222,3321.9,3321.4,2.40862]
[1732460016083,0.1492222,3321.9,3321.0,2.40886]
[1732460016287,0.1492222,3321.9,3321.2,0.7816]
[1732460016594,0.1492222,3321.9,3321.8,2.40833]
[1732460016980,0.1492222,3321.9,3321.8,3.18993]
[1732460017184,0.1492222,3321.9,3321.8,10.45861606]
[1732460017618,0.8252,3324.2,3323.2,2.40729]
[1732460017792,3.00847,3324.0,3323.3,2.40719]
[1732460017983,0.300847,3323.9,3323.1,0.7816]
[1732460018181,3.00834,3324.1,3323.3,2.4072]
[1732460018413,3.00843,3324.0,3323.2,2.4073]
[1732460018613,3.00855,3323.9,3323.2,2.966936]
[1732460018819,0.1492222,3325.2,3324.3,2.4065]
[1732460019017,3.00742,3325.1,3324.2,0.7816]
[1732460019189,0.1492222,3325.2,3324.2,3.18817]
[1732460019821,3.00782,3324.7,3323.9,2.40678]
[1732460020043,3.00782,3324.7,3324.0,2.40673]
[1732460020044,0.300782,3324.7,3324.0,2.40673]
[1732460020359,3.00788,3324.6,3323.8,3.18846]
[1732460020563,3.00797,3324.5,3323.9,2.4068]
[1732460020855,3.00825,3324.2,3323.4,0.7816]
[1732460021467,3.00836,3324.1,3323.4,0.7816]
[1732460021760,3.00843,3324.0,3323.1,2.40737]
[1732460021964,3.00815,3324.3,3323.5,2.40707]
[1732460022327,3.00789,3324.6,3323.6,2.40701]
[1732460022566,3.00789,3324.6,3323.7,3.21861402]
[1732460022861,3.00789,3324.6,3323.7,3.18853]
[1732460023065,3.308642,3324.7,3323.9,2.4068]
[1732460023536,3.00763,3324.9,3324.0,2.40667]
[1732460023737,3.00763,3324.9,3323.9,2.966334]
[1732460023738,3.00763,3324.9,3324.1,2.43670985]
[1732460023944,3.00765,3324.9,3324.1,2.40663]
[1732460024270,3.00752,3325.0,3324.2,3.17323]
[1732460024565,3.09142006,3324.9,3324.2,3.17323]
[1732460024866,0.08379006,3324.9,3324.4,2.40639]
[1732460025032,3.1565622,3325.2,3324.4,2.40639]
[1732460025365,3.09128006,3325.1,3324.4,2.40643]
[1732460025771,3.00784,3324.7,3324.2,0.7667]
[1732460026073,3.63222623,3325.1,3324.2,3.17329]
[1732460026373,3.00745,3325.1,3324.2,3.17329]
[1732460026676,3.00771,3324.8,3324.2,3.17329]
[1732460027194,0.08506805,3324.7,3324.2,0.7667]
[1732460027371,0.08506805,3324.7,3324.4,2.40638]
[1732460027723,0.1492222,3325.2,3324.6,2.40629]
[1732460027960,0.08504906,3324.6,3324.5,2.40637]
[1732460028135,0.1492222,3325.2,3324.7,2.40618]
[1732460028465,0.1492222,3325.2,3324.6,2.40629]
[1732460028831,3.1565622,3325.2,3324.6,2.40629]
[1732460029463,3.00751,3325.1,3324.2,3.17327]
[1732460029674,3.00771,3324.8,3324.2,3.17327]
[1732460029875,3.00785,3324.7,3324.2,0.7667]
[1732460030161,0.31565622,3325.1,3324.4,2.40644]
[1732460030162,3.00743,3325.1,3324.4,2.40644]
[1732460030366,3.00757,3325.0,3324.2,0.7667]
[1732460030526,3.00782,3324.7,3324.0,2.40668]
[1732460030729,3.308602,3324.7,3324.1,2.40666]
[1732460031165,0.1492222,3325.2,3323.9,0.7667]
[1732460031343,0.1492222,3325.2,3324.7,2.40622]
[1732460031539,0.1492222,3325.2,3325.1,2.40594]
[1732460032575,0.1492222,3325.2,3325.1,2.43600785]
[1732460032871,0.1492222,3325.2,3325.1,2.40594]
[1732460033091,0.1492222,3325.2,3325.0,2.40601]
[1732460033241,0.1492222,3325.2,3325.1,6.17264]
[1732460033560,0.1492222,3325.2,3325.1,6.20271063]
[1732460034640,0.1492222,3325.2,3325.1,3.20271063]
[1732460035279,3.83475,3327.4,3326.5,2.4049]
[1732460035498,0.8294,3327.4,3326.3,0.7667]
[1732460035781,0.8294,3327.4,3326.4,2.405]
[1732460035782,3.00569,3327.1,3326.4,2.405]
[1732460036074,0.08237907,3327.3,3326.2,2.40511]
[1732460036245,3.00559,3327.2,3326.5,2.40487]
[1732460036449,3.00572,3327.0,3326.4,2.40499]
[1732460036775,2.95582,3326.9,3326.3,2.40502]
[1732460036982,0.08313487,3326.9,3325.9,0.7667]
[1732460037191,3.00607,3326.6,3326.0,2.40523]
[1732460037339,0.61378831,3327.5,3326.2,2.40514]
[1732460037542,0.08313487,3326.5,3326.2,2.40514]
[1732460037775,3.00534,3327.4,3326.2,2.40514]
[1732460037776,3.0058,3326.9,3326.3,2.40502]
[1732460037980,3.08961164,3326.4,3325.8,2.40541]
[1732460038167,3.00607,3326.6,3326.1,2.40521]
[1732460038540,0.08329164,3326.3,3326.1,2.40519]
[1732460038699,3.306582,3326.7,3326.1,2.40519]
[1732460038899,0.08329164,3326.5,3325.7,3.17216]
[1732460039200,0.08329164,3326.4,3326.3,2.40507]
[1732460039352,3.00559,3327.2,3326.4,0.7667]
[1732460039545,3.00544,3327.3,3326.6,2.40479]
[1732460039783,3.00579,3327.0,3326.3,2.40504]
[1732460040087,0.8294,3327.0,3326.3,2.40504]
[1732460040258,1.35723835,3330.4,3326.3,2.40504]
[1732460040259,3.00562,3327.1,3326.5,3.17159]
[1732460040582,0.0814153,3327.0,3326.5,3.17159]
[1732460040749,3.00538,3327.4,3326.7,2.40477]
[1732460040949,3.383459,3327.5,3326.9,2.40458]
[1732460041188,0.383459,3327.5,3326.5,3.20168424]
[1732460041372,3.00556,3327.2,3326.5,3.17163]
[1732460041577,3.00536,3327.4,3326.5,0.7667]
[1732460041768,3.00558,3327.2,3326.6,2.40485]
[1732460041969,0.300536,3327.3,3326.8,2.40467]
[1732460042305,6.00512,3327.7,3326.9,0.0300565]
[1732460042611,3.00523,3327.6,3327.0,2.40456]
[1732460042902,3.00523,3327.6,3326.9,2.40463]
[1732460043065,3.383441,3327.7,3326.9,2.40463]
[1732460043261,3.0,3327.7,3327.2,2.40441]
[1732460043475,3.83435,3327.9,3327.0,0.03005246]
[1732460043677,3.00499,3327.8,3327.0,2.40452]
[1732460043899,3.00536,3327.4,3326.7,0.03005084]
[1732460044109,0.44433552,3327.8,3326.5,3.17161]
[1732460044316,3.00571,3327.0,3326.5,0.7667]
[1732460044471,3.00608,3326.6,3326.1,0.7893]
[1732460044802,0.8135,3327.1,3325.7,0.7893]
[1732460044803,3.00632,3326.4,3325.7,0.7893]
[1732460044990,3.0065,3326.2,3325.7,1.0893]
[1732460046200,3.00616,3326.5,3325.8,2.40538]
[1732460046408,0.07902521,3326.1,3325.8,0.03006357]
[1732460046581,3.00631,3326.4,3325.7,0.7893]
[1732460046902,0.07601469,3326.0,3325.8,2.43544244]
[1732460047106,0.1,3327.8,3325.7,0.7893]
[1732460047107,3.00607,3326.6,3326.0,2.40528]
[1732460047270,3.00607,3326.6,3326.1,0.03006064]
[1732460047471,0.07601469,3326.5,3325.7,0.7893]
[1732460047690,0.07601469,3326.5,3325.8,2.40543]
[1732460047896,3.00616,3326.5,3325.9,2.40529]
[1732460048099,0.07601469,3326.4,3326.0,2.40528]
[1732460048309,0.07601469,3326.4,3326.3,3.19437]
[1732460048469,0.07601469,3326.4,3326.3,6.38942029]
[1732460048672,0.8135,3328.0,3326.3,0.81935029]
[1732460048874,0.8135,3327.5,3326.1,2.40516]
[1732460049103,3.81939,3326.8,3326.2,2.40513]
[1732460049409,0.45795369,3326.7,3325.6,0.7893]
[1732460049712,0.60356339,3327.6,3325.2,0.7893]
[1732460049713,3.00694,3325.7,3325.2,0.7893]
[1732460049875,3.00687,3325.8,3325.2,0.7893]
[1732460050222,3.00715,3325.4,3324.8,2.40611]
[1732460050414,0.07601469,3325.7,3324.9,0.03007045]
[1732460050712,3.00672,3325.9,3325.2,2.40582]
[1732460050893,0.07601469,3325.6,3325.3,0.03006693]
[1732460051093,3.00672,3325.9,3325.3,2.43585693]
[1732460051408,3.00672,3325.9,3325.4,0.03006693]
[1732460051606,0.07601469,3325.8,3325.4,0.03006693]
[1732460051774,0.07601469,3325.8,3325.5,2.40562]
[1732460051970,0.8135,3326.0,3325.5,2.40562]
[1732460052212,3.00637,3326.3,3325.5,2.40563]
[1732460052213,0.07601469,3325.7,3325.5,2.40563]
[1732460052424,3.00637,3326.3,3325.8,2.40541]
[1732460052601,0.8135,3326.4,3325.9,0.03006398]
[1732460052773,3.00635,3326.3,3325.9,0.03006398]
[1732460053406,3.00643,3326.2,3325.9,0.03006399]
[1732460053582,3.00643,3326.2,3325.5,2.40564]
[1732460053784,3.81977,3326.4,3325.5,2.40564]
[1732460053785,0.59420385,3327.0,3325.7,0.7893]
[1732460053983,3.00569,3327.1,3325.9,2.40536]
[1732460054190,0.8135,3327.0,3325.8,2.40536]
[1732460054511,3.00622,3326.5,3325.8,2.40536]
[1732460054673,3.00622,3326.5,3325.9,2.40535]
[1732460054875,3.00631,3326.4,3325.6,2.40555]
[1732460055113,3.08232947,3326.4,3325.7,3.0]
[1732460055317,3.08232947,3326.4,3325.6,2.646105]
[1732460055318,0.07601947,3326.4,3325.6,3.240555]
[1732460055487,0.07601947,3326.4,3326.1,2.40516]
[1732460055671,3.00596,3326.8,3326.1,2.4352202]
[1732460055870,0.07598127,3326.3,3326.1,2.4352202]
[1732460056117,3.0056,3327.2,3325.9,2.40536]
[1732460056275,0.07598127,3326.2,3326.1,2.40521]
[1732460056632,3.00546,3327.3,3326.6,2.4048]
[1732460056923,3.00546,3327.3,3326.6,2.43485565]
[1732460057310,3.00546,3327.3,3326.4,2.40495]
[1732460057311,3.81917,3327.1,3326.4,2.40495]
[1732460057630,3.81917,3327.1,3326.6,2.40484]
[1732460057928,3.81917,3327.1,3326.5,2.40487]
[1732460058130,3.81917,3327.1,3326.2,2.40511]
[1732460058284,3.81917,3327.1,3326.4,2.40494]
[1732460058584,3.0059,3326.8,3326.3,2.40504]
[1732460058787,3.81915,3327.1,3326.3,2.40504]
[1732460059030,3.00581,3326.9,3326.3,2.40504]
[1732460059334,0.59760536,3327.6,3326.4,0.03005884]
[1732460059499,0.8135,3327.5,3327.1,2.40449]
[1732460059701,3.81849,3327.8,3327.3,2.40434]
[1732460059892,3.81849,3327.8,3327.2,2.40441]
[1732460060225,0.8135,3327.8,3326.7,0.03005306]
[1732460060426,1.41848914,3328.2,3326.8,3.19401]
[1732460060637,0.8135,3328.2,3327.6,2.4041]
[1732460060793,0.8135,3328.2,3327.7,2.40405]
[1732460060794,1.195301,3328.2,3327.7,2.40405]
[1732460060988,0.1492222,3328.5,3327.7,3.19335]
[1732460061196,3.00462,3328.3,3327.7,3.19335]
[1732460061429,3.00471,3328.1,3327.3,2.4043]
[1732460061633,3.00471,3328.1,3327.3,2.4343492]
[1732460061837,3.00471,3328.1,3327.5,2.40415]
[1732460061994,0.8135,3328.0,3327.3,2.4343492]
[1732460062191,3.00495,3327.9,3327.3,2.99115722]
[1732460062515,0.8135,3328.0,3327.5,2.40417]
[1732460062701,3.00471,3328.1,3327.5,2.94370272]
[1732460062886,3.00454,3328.3,3327.7,2.40403]
[1732460063238,0.8135,3328.4,3327.9,2.40391]
[1732460063537,3.81799,3328.4,3327.7,2.40405]
[1732460063907,3.00471,3328.2,3327.5,2.40419]
[1732460064121,3.81797,3328.4,3327.5,2.40419]
[1732460064307,3.00459,3328.3,3327.6,2.40413]
[1732460064632,3.00459,3328.3,3327.5,2.40419]
[1732460064633,3.00456,3328.3,3327.7,2.40405]
[1732460064832,3.81797,3328.4,3327.5,2.40415]
[1732460065038,3.81797,3328.4,3327.7,2.404]
[1732460065344,3.00447,3328.4,3327.8,2.40394]
[1732460065699,3.00454,3328.3,3327.8,2.40394]
[1732460065899,3.1535722,3328.5,3327.9,2.40386]
[1732460066199,0.1492222,3328.5,3328.0,2.40382]
[1732460066401,0.1492222,3328.5,3328.4,2.40355]
[1732460068296,0.1492222,3328.5,3328.4,3.19788928]
[1732460068575,0.1492222,3328.5,3328.4,3.75804121]
[1732460068893,0.1492222,3328.5,3328.4,3.72800193]
[1732460069952,0.22631537,3328.5,3328.4,3.72800193]
[1732460070120,0.1492222,3328.5,3328.4,3.72800193]
[1732460070316,0.22631537,3328.5,3328.4,3.72800193]
[1732460070952,0.1492222,3328.5,3328.4,3.72800193]
[1732460071311,0.22631537,3328.5,3328.4,0.56015193]
[1732460071516,0.22631537,3328.5,3328.0,3.16811]
[1732460071713,0.22631537,3328.5,3328.1,2.40376]
[1732460071918,3.23070537,3328.5,3327.9,2.40388]
[1732460072147,0.22631537,3328.5,3328.1,2.40375]
[1732460072366,0.22631537,3328.5,3328.2,2.40367]
[1732460073021,0.22631537,3328.5,3328.0,2.40378]
[1732460073224,0.22631537,3328.5,3328.0,2.644158]
[1732460073458,0.22631537,3328.5,3328.1,2.40376]
[1732460074224,3.23067537,3328.5,3328.0,0.240378]
[1732460074448,0.22631537,3328.5,3327.9,2.40385]
[1732460074868,0.22631537,3328.5,3328.4,2.40355]
[1732460075025,0.22631537,3328.5,3328.4,3.408205]
[1732460076143,0.1492222,3328.5,3328.4,3.408205]
[1732460076821,0.22731257,3328.5,3328.4,3.408205]
[1732460077760,0.1492222,3328.5,3328.4,3.408205]
[1732460078327,0.22743177,3328.5,3328.4,3.408205]
[1732460080641,0.22743177,3328.5,3328.4,0.240355]
[1732460082628,0.22743177,3328.5,3328.4,2.643905]
[1732460082828,0.22743177,3328.5,3328.4,0.240355]
[1732460083069,0.22743177,3328.5,3328.3,2.40357]
[1732460083448,0.22743177,3328.5,3328.4,2.40355]
[1732460083656,0.22743177,3328.5,3328.2,2.40369]
[1732460084160,0.22743177,3328.5,3328.3,2.40357]
[1732460084361,0.22743177,3328.5,3328.4,0.240357]
[1732460084575,0.22743177,3328.5,3328.1,2.40376]
[1732460084859,0.1492222,3328.5,3327.9,3.19819036]
[1732460085060,0.1492222,3328.5,3328.0,0.31981904]
[1732460085261,0.1492222,3328.5,3328.0,2.72360904]
[1732460085262,0.07833357,3328.4,3328.0,2.72360904]
[1732460085771,0.07833357,3328.4,3328.3,2.40362]
[1732460086763,0.07833357,3328.4,3328.2,2.40369]
[1732460086976,0.07833357,3328.4,3328.2,2.67904718]
[1732460087271,0.07833357,3328.4,3328.3,6.18752]
[1732460087778,0.1492222,3328.5,3328.4,2.40355]
[1732460088140,0.1492222,3328.5,3328.4,2.43358609]
[1732460088364,0.1492222,3328.5,3328.4,3.56360142]
[1732460088654,0.1492222,3328.5,3328.4,4.34750142]
[1732460090042,0.1492222,3328.5,3328.4,7.34750142]
[1732460090242,0.1492222,3328.5,3328.4,7.31746533]
[1732460091740,2.2e-06,3328.5,3328.4,7.31746533]
[1732460093584,2.2e-06,3328.5,3328.4,7.50389863]
[1732460094343,2.2e-06,3328.5,3328.4,7.31746533]
[1732460096693,2.2e-06,3328.5,3328.4,7.61806533]
[1732460098989,2.2e-06,3328.5,3328.4,7.71806533]
[1732460099590,2.2e-06,3328.5,3328.4,7.61806533]
[1732460104030,2.2e-06,3328.5,3328.4,6.83416533]
[1732460106358,2.2e-06,3328.5,3328.4,2.40355]
[1732460106713,2.2e-06,3328.5,3328.4,2.4335896]
[1732460107025,2.2e-06,3328.5,3328.4,2.40355]
[1732460107424,0.07882202,3328.5,3328.4,2.40355]
[1732460107630,2.2e-06,3328.5,3328.4,2.40355]
[1732460107823,0.07882202,3328.5,3328.4,2.40355]
[1732460108027,2.2e-06,3328.5,3328.4,2.40355]
[1732460108278,0.07882202,3328.5,3328.4,2.40355]
[1732460108567,2.2e-06,3328.5,3328.4,2.40355]
[1732460108726,0.07882202,3328.5,3328.4,2.43358964]
[1732460108925,2.2e-06,3328.5,3328.4,2.43358964]
[1732460109429,0.07867902,3328.5,3328.4,2.43358964]
[1732460109623,2.2e-06,3328.5,3328.4,2.43358964]
[1732460109928,0.07867902,3328.5,3328.4,2.43358964]
[1732460110133,2.2e-06,3328.5,3328.4,2.43358964]
[1732460110630,0.07868855,3328.5,3328.4,2.43358964]
[1732460110830,2.2e-06,3328.5,3328.4,2.43358964]
[1732460111031,2.2e-06,3328.5,3327.1,2.40443]
[1732460111032,3.00488,3328.0,3327.1,2.40443]
[1732460111231,1.28490669,3327.9,3327.4,2.4042]
[1732460111464,1.36355967,3327.9,3327.4,2.4042]
[1732460111642,0.88925298,3327.9,3327.4,2.4042]
[1732460112047,0.88925298,3327.9,3327.2,2.40439]
[1732460112251,0.88925298,3327.9,3327.3,0.240441]
[1732460112447,3.00512,3327.7,3327.0,2.4045]
[1732460112665,3.00512,3327.7,3327.0,2.40451]
[1732460112970,0.07863868,3327.6,3327.1,2.40448]
[1732460113131,0.07863868,3327.6,3327.0,2.40451]
[1732460113331,0.8106,3327.9,3327.0,0.240451]
[1732460113565,0.07863868,3327.5,3327.0,2.40451]
[1732460113742,3.00509,3327.7,3327.0,2.40451]
[1732460113942,0.07863868,3327.4,3327.0,2.40451]
[1732460114174,0.7809,3327.5,3327.0,3.185431]
[1732460114480,3.00556,3327.2,3326.3,0.7535]
[1732460114774,3.00602,3326.7,3325.8,0.03005504]
[1732460115071,0.7809,3326.6,3325.7,0.78355956]
[1732460115378,0.85905224,3326.6,3326.2,2.40513]
[1732460115538,3.86514224,3326.6,3326.0,2.40529]
[1732460115874,3.86514224,3326.6,3325.8,2.40541]
[1732460116181,0.85905224,3326.6,3325.9,2.40531]
[1732460116467,3.08297941,3326.5,3325.9,2.40531]
[1732460116675,0.07675941,3326.5,3326.0,0.240531]
[1732460116881,3.00625,3326.4,3325.8,2.40543]
[1732460117080,3.00625,3326.4,3325.7,2.4055]
[1732460117081,3.00637,3326.3,3325.7,2.4055]
[1732460117375,3.00662,3326.0,3325.2,2.40586]
[1732460117587,0.85742074,3325.9,3325.4,2.40571]
[1732460117791,0.85742074,3325.9,3325.3,0.240586]
[1732460117989,0.85742074,3325.9,3325.4,2.40567]
[1732460118286,0.85742074,3325.9,3325.2,2.40586]
[1732460118458,3.00682,3325.8,3325.2,2.40586]
[1732460118786,3.08313425,3325.7,3324.9,2.40607]
[1732460118949,0.7809,3325.4,3325.1,2.40588]
[1732460119390,0.7809,3325.4,3325.2,2.40585]
[1732460119685,0.7809,3326.0,3325.2,2.40585]
[1732460119983,0.7809,3326.0,3325.5,2.40564]
[1732460120193,0.48755669,3327.0,3325.5,2.40564]
[1732460120194,0.7809,3326.8,3325.6,2.43564828]
[1732460120349,0.7809,3326.8,3326.0,2.40527]
[1732460120691,0.7809,3326.8,3326.3,2.40505]
[1732460120900,0.7809,3326.8,3326.3,2.40504]
[1732460121045,0.7809,3326.8,3326.1,2.40521]
[1732460121254,0.7809,3326.8,3326.1,2.4052]
[1732460121458,0.7809,3326.8,3326.2,2.40513]
[1732460121693,0.7809,3326.8,3326.2,0.03005964]
[1732460121860,0.7809,3326.8,3326.3,2.40507]
[1732460122060,0.7809,3326.8,3326.2,2.43515964]